fUSD/lending_fUSD_20260319
["ID","MTS","AMOUNT","RATE_DAILY","PERIOD"]
[408552502,1773887431851,-600.0,0.000116,4]
[408552503,1773887431860,-250.0,0.0001165,2]
[408552504,1773887431870,-900.0,0.000117,4]
[408552505,1773887431879,-1300.0,0.000118,4]
[408552506,1773887431889,-247.0,0.00011811,2]
[408552507,1773887431898,-630.6342,0.00011811,2]
[408552508,1773887431907,-176.24776416,0.00011873,2]
[408552509,1773887431917,-471.16106528,0.00011873,2]
[408552510,1773887431926,-3800.0,0.000119,4]
[408552511,1773887431936,-1600.0,0.000119,4]
[408552512,1773887431945,-211.53723896,0.00011901,2]
[408552513,1773887431954,-1200.0,0.00011908,2]
[408552514,1773887431964,-300.0,0.00011909,2]
[408552515,1773887431974,-300.0,0.00011909,2]
[408552516,1773887431983,-300.0,0.00011909,2]
[408552517,1773887431992,-150.0,0.00011909,2]
[408552518,1773887432002,-212741.11436486,0.0001191,2]
[408552519,1773887432012,-195.73736012,0.0001191,2]
[408552520,1773887432021,-306.98088231,0.0001191,2]
[408552521,1773887432030,-500.0,0.0001191,2]
[408552522,1773887432039,-500.0,0.0001191,2]
[408552523,1773887432048,-629.02275627,0.0001191,2]
[408552524,1773887432057,-457.16984738,0.0001191,2]
[408552525,1773887432066,-500.0,0.0001191,2]
[408552527,1773887432076,-500.0,0.0001191,2]
[408552529,1773887432090,-446.08101,0.0001191,2]
[408552532,1773887432100,-500.0,0.0001191,2]
[408552534,1773887432110,-500.0,0.0001191,2]
[408552535,1773887432122,-162961.63476529,0.00011911,2]
[408552537,1773887432133,-16740.90304869,0.00011911,2]
[408552539,1773887432144,-70238.95207975,0.00011911,2]
[408552540,1773887432155,-104902.25368338,0.00011911,2]
[408552541,1773887432166,-600.0,0.00011911,2]
[408552542,1773887436085,22146.87,0.00030136,120]
[408552543,1773887437898,-3685.56,0.00011911,2]
[408552544,1773887437953,-677794.92945367,0.00011911,2]
[408552548,1773887440064,-2109.78527406,0.00011911,2]
[408552549,1773887440077,-1460965.98169516,0.00011911,2]
[408552550,1773887440090,-211.53723896,0.00011959,2]
[408552551,1773887440101,-1342.288594,0.00011969,2]
[408552552,1773887440111,-1342.288594,0.00011969,2]
[408552553,1773887440121,-1342.288594,0.00011969,2]
[408552554,1773887440131,-1342.288594,0.00011969,2]
[408552555,1773887440141,-151.0,0.00011969,2]
[408552556,1773887440150,-1500000.0,0.00011969,2]
[408552557,1773887440162,-501.23260465,0.00011973,2]
[408552558,1773887440171,-500.0,0.00011973,2]
[408552559,1773887440181,-500.0,0.00011973,2]
[408552560,1773887440190,-333.46581243,0.00011973,2]
[408552561,1773887440199,-500.45082224,0.00011973,2]
[408552562,1773887440211,-500.0,0.00011973,2]
[408552563,1773887440222,-500.2027226,0.00011973,2]
[408552564,1773887440231,-500.5283362,0.00011973,2]
[408552565,1773887440240,-167.41696439,0.00011973,2]
[408552566,1773887440250,-502.69930724,0.00011973,2]
[408552567,1773887440262,-501.72089582,0.00011973,2]
[408552568,1773887440272,-500.47613985,0.00011973,2]
[408552569,1773887440281,-503.12749744,0.00011973,2]
[408552570,1773887440291,-500.0,0.00011973,2]
[408552571,1773887440301,-501.85391642,0.00011973,2]
[408552572,1773887440311,-500.61001698,0.00011973,2]
[408552573,1773887440321,-500.0,0.00011973,2]
[408552574,1773887440331,-500.0,0.00011973,2]
[408552575,1773887440340,-7400.59810632,0.00011987,2]
[408552576,1773887440350,-358.54760233,0.00012,2]
[408552577,1773887440361,-8882.6885148,0.00012004,2]
[408552578,1773887440370,-151.0,0.00012004,2]
[408552579,1773887440380,-3998.031,0.00012011,2]
[408552580,1773887440394,-211.285,0.00012011,2]
[408552581,1773887440406,-1000.0,0.00012011,2]
[408552582,1773887440417,-32974.6857,0.00012011,2]
[408552583,1773887440427,-2500.0,0.00012011,2]
[408552584,1773887440437,-500.0,0.00012011,2]
[408552585,1773887440447,-255.44481449,0.00012042,2]
[408552586,1773887440457,-9211.34798985,0.00012059,2]
[408552587,1773887440467,-151.0,0.00012059,2]
[408552588,1773887440477,-7012.46374542,0.0001206,2]
[408552589,1773887440486,-396.44046237,0.00012068,2]
[408552590,1773887440496,-81874.82497101,0.00012069,2]
[408552591,1773887440505,-1342.288594,0.00012087,2]
[408552592,1773887440515,-1342.288594,0.00012087,2]
[408552593,1773887440525,-1342.288594,0.00012087,2]
[408552594,1773887440535,-1342.288594,0.00012087,2]
[408552595,1773887440545,-151.0,0.00012087,2]
[408552596,1773887440554,-9999.99,0.00012087,2]
[408552597,1773887440563,-499.99,0.00012087,2]
[408552598,1773887440572,-150.99,0.00012087,2]
[408552599,1773887440582,-9999.99,0.00012087,2]
[408552600,1773887440591,-312.53,0.00012087,2]
[408552601,1773887440601,-1547.13,0.00012087,2]
[408552602,1773887440610,-64088.97,0.00012087,2]
[408552603,1773887440621,-26141.55,0.00012087,2]
[408552604,1773887440630,-999.99,0.00012087,2]
[408552605,1773887440640,-2456.36,0.00012087,2]
[408552606,1773887440650,-3202.45,0.00012087,2]
[408552607,1773887440659,-299.99,0.00012087,2]
[408552608,1773887440669,-19397.74,0.00012087,2]
[408552609,1773887440679,-9999.99,0.00012087,2]
[408552610,1773887440689,-3671.02,0.00012087,2]
[408552611,1773887440698,-9999.99,0.00012087,2]
[408552612,1773887440707,-14087.21,0.00012087,2]
[408552613,1773887440717,-150.99,0.00012087,2]
[408552614,1773887440727,-517.27,0.00012087,2]
[408552615,1773887440736,-1618.05,0.00012087,2]
[408552616,1773887440749,-9999.99,0.00012087,2]
[408552617,1773887440759,-19757.4618103,0.00012098,2]
[408552618,1773887440770,-236.28,0.000121,2]
[408552619,1773887440779,-391.19164398,0.00012104,2]
[408552620,1773887440790,-500.0,0.00012104,2]
[408552621,1773887440799,-500.0,0.00012104,2]
[408552622,1773887440809,-500.0,0.00012104,2]
[408552623,1773887440819,-500.0,0.00012104,2]
[408552624,1773887440828,-500.0,0.00012104,2]
[408552625,1773887440838,-500.0,0.00012104,2]
[408552626,1773887440848,-500.0,0.00012104,2]
[408552627,1773887440858,-250.0,0.00012104,2]
[408552628,1773887440867,-500.0,0.00012104,2]
[408552629,1773887440876,-250.0,0.00012104,2]
[408552630,1773887440886,-500.0,0.00012104,2]
[408552631,1773887440895,-250.0,0.00012104,2]
[408552632,1773887440905,-250.0,0.00012104,2]
[408552633,1773887440914,-500.0,0.00012104,2]
[408552634,1773887440924,-250.0,0.00012104,2]
[408552635,1773887440934,-282.59450799,0.00012104,2]
[408552636,1773887440948,-200.0,0.00012104,2]
[408552637,1773887440958,-250.0,0.00012104,2]
[408552638,1773887440967,-500.0,0.00012104,2]
[408552639,1773887440976,-250.0,0.00012104,2]
[408552640,1773887440986,-250.0,0.00012104,2]
[408552641,1773887440996,-250.0,0.00012104,2]
[408552642,1773887441006,-649.88446815,0.00012104,2]
[408552643,1773887441016,-250.0,0.00012104,2]
[408552644,1773887441025,-250.0,0.00012104,2]
[408552645,1773887441035,-375.7483694,0.00012104,2]
[408552646,1773887441044,-669.13395939,0.00012104,2]
[408552647,1773887441053,-151.0,0.00012104,2]
[408552648,1773887441063,-151.0,0.00012108,2]
[408552649,1773887441072,-6040.5187205,0.00012111,2]
[408552650,1773887441084,-3769.94226898,0.00012114,2]
[408552651,1773887441094,-151.0,0.00012114,2]
[408552652,1773887441105,-419.55,0.00012131,2]
[408552653,1773887441114,-350.0,0.00012157,2]
[408552654,1773887441126,-500.0,0.00012159,2]
[408552655,1773887441138,-7400.59810628,0.00012166,2]
[408552656,1773887441148,-151.0,0.00012169,2]
[408552657,1773887441159,-500.0,0.00012173,2]
[408552658,1773887441169,-1342.288594,0.00012211,2]
[408552659,1773887441178,-1342.288594,0.00012211,2]
[408552660,1773887441188,-1342.288594,0.00012211,2]
[408552661,1773887441198,-1342.288594,0.00012211,2]
[408552662,1773887441209,-43297.08,0.00012211,2]
[408552663,1773887441218,-1600.0,0.00012211,2]
[408552664,1773887441228,-1401.04,0.00012211,2]
[408552665,1773887441238,-500.0,0.00012211,2]
[408552666,1773887441248,-500.0,0.00012214,2]
[408552667,1773887441258,-151.0,0.00012224,2]
[408552668,1773887441268,-350.0,0.00012229,2]
[408552669,1773887441278,-7012.46374542,0.00012252,2]
[408552670,1773887441289,-350.0,0.00012255,2]
[408552671,1773887441299,-500.0,0.00012269,2]
[408552672,1773887441309,-151.0,0.00012279,2]
[408552673,1773887441319,-500.0,0.00012285,2]
[408552674,1773887441331,-350.0,0.00012286,2]
[408552675,1773887441342,-1025.5140421,0.000123,2]
[408552676,1773887441354,-2531.84277185,0.000123,2]
[408552677,1773887441364,-2804.26593159,0.000123,2]
[408552678,1773887441375,-342.28408552,0.000123,2]
[408552679,1773887441385,-242.93092646,0.000123,2]
[408552680,1773887441395,-1228.17,0.00012309,2]
[408552681,1773887441405,-211.12973845,0.00012313,2]
[408552682,1773887441415,-350.0,0.00012314,2]
[408552683,1773887441425,-500.0,0.00012324,2]
[408552684,1773887441436,-166.66,0.00012333,2]
[408552685,1773887441446,-151.0,0.00012334,2]
[408552686,1773887441456,-7400.59810628,0.00012345,2]
[408552687,1773887441466,-61678.54643011,0.0001236,2]
[408552688,1773887441475,-7099.4,0.0001236,2]
[408552689,1773887441486,-500.0,0.00012379,2]
[408552690,1773887441495,-1001.56041668,0.00012385,2]
[408552691,1773887441505,-151.0,0.00012389,2]
[408552692,1773887441514,-2000.0,0.00012407,2]
[408552693,1773887441526,-1505.14446171,0.00012431,2]
[408552694,1773887441536,-500.0,0.00012434,2]
[408552695,1773887441545,-7012.46374542,0.00012443,2]
[408552696,1773887441554,-165.34358944,0.00012444,2]
[408552697,1773887441565,-500.0,0.00012466,2]
[408552698,1773887441574,-155.612,0.00012476,2]
[408552699,1773887441585,-500.0,0.00012476,2]
[408552700,1773887441595,-500.0,0.00012476,3]
[408552701,1773887441604,-500.0,0.00012476,4]
[408552702,1773887441614,-500.0,0.00012476,5]
[408552703,1773887441624,-500.0,0.00012476,6]
[408552704,1773887441633,-500.0,0.00012476,7]
[408552705,1773887441643,-500.0,0.00012476,8]
[408552706,1773887441653,-500.0,0.00012476,9]
[408552707,1773887441662,-206.258585,0.00012476,2]
[408552708,1773887441672,-206.258585,0.00012476,2]
[408552709,1773887441682,-206.258585,0.00012476,2]
[408552710,1773887441691,-206.258585,0.00012476,2]
[408552711,1773887441700,-151.0,0.00012476,2]
[408552712,1773887441710,-151.0,0.00012476,2]
[408552713,1773887441719,-151.0,0.00012476,2]
[408552714,1773887441729,-151.0,0.00012476,2]
[408552715,1773887441739,-169.09,0.00012484,2]
[408552716,1773887441748,-500.0,0.00012489,2]
[408552717,1773887441759,-309.37821434,0.000125,2]
[408552718,1773887441768,-509.80182332,0.00012521,2]
[408552719,1773887441778,-1000.0,0.00012521,2]
[408552720,1773887441788,-313.87862379,0.00012521,2]
[408552721,1773887441797,-1000.0,0.00012521,2]
[408552722,1773887441806,-1000.0,0.00012521,2]
[408552723,1773887441816,-622.82008858,0.00012521,2]
[408552724,1773887441825,-7400.59810628,0.00012524,2]
[408552725,1773887441834,-151.0,0.00012537,2]
[408552726,1773887441845,-274.98374608,0.00012541,2]
[408552727,1773887441856,-500.0,0.00012544,2]
[408552728,1773887441865,-13758.1601717,0.00012547,2]
[408552729,1773887441876,-591.0303959,0.00012547,2]
[408552730,1773887441886,-1304.7768587,0.00012549,2]
[408552731,1773887441904,-612.442671,0.00012549,2]
[408552732,1773887441917,-503.4765885,0.00012559,2]
[408552733,1773887441927,-166.66,0.00012578,2]
[408552734,1773887441937,-500.0,0.00012599,2]
[408552735,1773887441947,-164.75,0.000126,2]
[408552736,1773887441957,-631.26,0.000126,2]
[408552737,1773887441967,-2469.0,0.00012625,5]
[408552738,1773887441977,-7012.46374542,0.00012635,2]
[408552739,1773887442278,-200.0,0.00012652,2]
[408552740,1773887442288,-693.89191589,0.00012652,2]
[408552741,1773887442297,-500.0,0.00012654,2]
[408552742,1773887442307,-946.660142,0.00012677,2]
[408552743,1773887442316,-946.660142,0.00012677,2]
[408552744,1773887442325,-946.660142,0.00012677,2]
[408552745,1773887442335,-946.660142,0.00012677,2]
[408552746,1773887442344,-250.0,0.00012699,2]
[408552747,1773887442353,-7400.59810628,0.00012703,2]
[408552748,1773887442367,-500.0,0.00012709,2]
[408552749,1773887442376,-375.44189071,0.00012721,2]
[408552750,1773887442386,-193.0,0.0001276,2]
[408552751,1773887442396,-4729.65959388,0.0001276,2]
[408552752,1773887442406,-300.0,0.0001276,2]
[408552753,1773887442415,-250.0,0.0001276,2]
[408552754,1773887442425,-1722.45881604,0.0001276,2]
[408552755,1773887442435,-530.74025783,0.00012764,2]
[408552756,1773887442444,-350.0,0.00012774,3]
[408552757,1773887442454,-519.32677166,0.00012776,3]
[408552758,1773887442463,-500.0,0.00012776,2]
[408552759,1773887442473,-533.90740255,0.00012776,3]
[408552760,1773887442490,-1000.0,0.00012777,2]
[408552761,1773887442503,-1000.0,0.00012777,2]
[408552762,1773887442513,-1000.0,0.00012777,2]
[408552763,1773887442522,-1000.0,0.00012777,2]
[408552764,1773887442532,-1000.0,0.00012777,2]
[408552765,1773887442542,-1000.0,0.00012777,2]
[408552766,1773887442551,-1000.0,0.00012777,2]
[408552767,1773887442561,-1000.0,0.00012777,2]
[408552768,1773887442575,-1000.0,0.00012777,2]
[408552769,1773887442585,-1000.0,0.00012777,2]
[408552770,1773887442595,-1000.0,0.00012777,2]
[408552771,1773887442604,-1000.0,0.00012777,2]
[408552772,1773887442614,-1000.0,0.00012777,2]
[408552773,1773887442624,-1000.0,0.00012777,2]
[408552774,1773887442633,-1000.0,0.00012777,2]
[408552776,1773887442643,-1000.0,0.00012777,2]
[408552777,1773887442653,-1000.0,0.00012777,2]
[408552778,1773887442662,-1000.0,0.00012777,2]
[408552779,1773887442673,-1000.0,0.00012777,2]
[408552780,1773887442683,-1003.72144223,0.00012777,2]
[408552781,1773887442692,-1000.0,0.00012777,2]
[408552782,1773887442702,-343.69611,0.00012777,2]
[408552783,1773887442711,-343.6961,0.00012777,2]
[408552784,1773887442721,-343.69611,0.00012777,2]
[408552785,1773887442731,-343.6961,0.00012777,2]
[408552786,1773887442741,-343.69611,0.00012777,2]
[408552787,1773887442751,-343.6961,0.00012777,2]
[408552788,1773887442761,-997.0,0.000128,2]
[408552789,1773887442774,-576.0,0.000128,2]
[408552790,1773887442784,-289.70778975,0.00012816,2]
[408552791,1773887442794,-166.66,0.00012822,2]
[408552792,1773887442804,-2815.0,0.00012826,5]
[408552793,1773887442814,-2916.0,0.00012826,5]
[408552794,1773887442825,-1342.288594,0.00012826,2]
[408552796,1773887442834,-1342.288594,0.00012826,2]
[408552798,1773887442845,-1342.288594,0.00012826,2]
[408552800,1773887442854,-1342.288594,0.00012826,2]
[408552801,1773887442864,-7012.46374542,0.00012826,2]
[408552802,1773887442873,-7400.59810628,0.00012883,2]
[408552803,1773887442884,-206.258585,0.00012893,2]
[408552804,1773887442894,-206.258585,0.00012893,2]
[408552805,1773887442904,-206.258585,0.00012893,2]
[408552806,1773887442914,-206.258585,0.00012893,2]
[408552807,1773887442923,-151.0,0.00012893,2]
[408552808,1773887442933,-151.0,0.00012893,2]
[408552809,1773887442942,-166.050003,0.00012893,2]
[408552810,1773887442952,-166.66,0.00012916,2]
[408552811,1773887442962,-255.0,0.00012981,2]
[408552812,1773887442971,-500.0,0.0001299,2]
[408552813,1773887442984,-500.0,0.0001299,2]
[408552814,1773887442993,-500.0,0.0001299,2]
[408552815,1773887443003,-500.0,0.0001299,2]
[408552816,1773887443014,-500.0,0.0001299,2]
[408552817,1773887443024,-500.0,0.0001299,2]
[408552818,1773887443034,-500.0,0.0001299,2]
[408552819,1773887443043,-500.0,0.0001299,2]
[408552820,1773887443053,-500.0,0.0001299,2]
[408552821,1773887443064,-500.0,0.0001299,2]
[408552822,1773887443075,-500.0,0.0001299,2]
[408552823,1773887443089,-612.39,0.0001299,2]
[408552824,1773887443100,-500.0,0.0001299,2]
[408552825,1773887443110,-500.0,0.0001299,2]
[408552826,1773887443122,-423.72,0.0001299,2]
[408552827,1773887443131,-5641.13925074,0.00013,2]
[408552828,1773887443140,-3815.7566742,0.00013,15]
[408552829,1773887443150,-442.29976081,0.00013,2]
[408552830,1773887443160,-7012.46374542,0.00013018,2]
[408552831,1773887443173,-310.79013893,0.00013049,13]
[408552832,1773887443182,-350.0,0.0001306,2]
[408552833,1773887443193,-7400.59810628,0.00013062,2]
[408552834,1773887443204,-500.70249229,0.00013068,2]
[408552835,1773887443214,-1500.0,0.00013068,2]
[408552837,1773887443223,-504.04033637,0.00013068,2]
[408552839,1773887443232,-420.0,0.00013075,2]
[408552840,1773887443242,-420.0,0.00013075,2]
[408552841,1773887443251,-225.96877254,0.00013082,2]
[408552842,1773887443260,-350.0,0.00013088,2]
[408552844,1773887443269,-2221.0,0.00013096,2]
[408552845,1773887443279,-1680.0,0.00013099,2]
[408552846,1773887443289,-5026.01275333,0.00013102,2]
[408552847,1773887443299,-169.09,0.00013109,2]
[408552848,1773887443311,-350.0,0.00013113,2]
[408552849,1773887443322,-1551.72714537,0.00013183,2]
[408552850,1773887443331,-201.91832392,0.000132,2]
[408552851,1773887443340,-7012.46374542,0.00013209,2]
[408552852,1773887443350,-274.98374608,0.00013213,2]
[408552853,1773887443360,-236.28,0.00013236,2]
[408552854,1773887443371,-7400.59810628,0.00013241,2]
[408552855,1773887443381,-151.0,0.00013246,2]
[408552856,1773887443391,-151.0,0.00013246,2]
[408552857,1773887443402,-450.68,0.00013252,2]
[408552858,1773887443412,-450.68,0.00013252,2]
[408552859,1773887443423,-946.660142,0.00013275,2]
[408552860,1773887443434,-946.660142,0.00013275,2]
[408552861,1773887443445,-946.660142,0.00013275,2]
[408552862,1773887443454,-946.660142,0.00013275,2]
[408552863,1773887443463,-166.66,0.00013329,2]
[408552864,1773887443473,-151.09920728,0.00013334,2]
[408552865,1773887443483,-2221.0,0.0001339,2]
[408552866,1773887443493,-2221.0,0.00013392,2]
[408552867,1773887443505,-803.09530237,0.00013397,2]
[408552868,1773887443516,-7012.46374542,0.00013401,2]
[408552869,1773887443527,-7400.59810628,0.0001342,2]
[408552870,1773887443537,-3240.0,0.00013425,2]
[408552871,1773887443558,-803.09530237,0.00013452,2]
[408552872,1773887443569,-350.0,0.00013465,2]
[408552873,1773887443580,-419.55,0.00013478,2]
[408552874,1773887443591,-206.258585,0.00013489,2]
[408552875,1773887443601,-206.258585,0.00013489,2]
[408552876,1773887443611,-206.258585,0.00013489,2]
[408552877,1773887443620,-206.258585,0.00013489,2]
[408552878,1773887443630,-803.09530237,0.00013507,2]
[408552879,1773887443640,-500.0,0.00013537,2]
[408552880,1773887443649,-501.61437421,0.00013537,2]
[408552881,1773887443660,-500.0,0.00013537,2]
[408552882,1773887443670,-500.0,0.00013537,2]
[408552883,1773887443680,-500.0,0.00013537,2]
[408552884,1773887443690,-500.0,0.00013537,2]
[408552885,1773887443699,-500.0,0.00013537,2]
[408552886,1773887443709,-500.0,0.00013537,2]
[408552887,1773887443719,-500.0,0.00013537,2]
[408552888,1773887443730,-500.0,0.00013537,2]
[408552889,1773887443741,-500.0,0.00013537,2]
[408552890,1773887443752,-500.0,0.00013537,2]
[408552891,1773887443761,-500.0,0.00013537,2]
[408552892,1773887443771,-500.0,0.00013537,2]
[408552893,1773887443780,-500.0,0.00013537,2]
[408552894,1773887443791,-500.0,0.00013537,2]
[408552895,1773887443802,-500.0,0.00013537,2]
[408552896,1773887443811,-500.0,0.00013537,2]
[408552897,1773887443821,-500.0,0.00013537,2]
[408552898,1773887443830,-500.0,0.00013537,2]
[408552899,1773887443842,-500.0,0.00013537,2]
[408552900,1773887443855,-417.93350754,0.00013537,2]
[408552901,1773887443865,-500.0,0.00013537,2]
[408552902,1773887443876,-500.0,0.00013537,2]
[408552903,1773887443886,-500.0,0.00013537,2]
[408552904,1773887443897,-500.0,0.00013537,2]
[408552905,1773887443909,-500.0,0.00013537,2]
[408552906,1773887443920,-521.0,0.00013537,2]
[408552907,1773887443931,-500.0,0.00013537,2]
[408552908,1773887443941,-500.0,0.00013537,2]
[408552909,1773887443953,-500.0,0.00013537,2]
[408552910,1773887443963,-500.0,0.00013537,2]
[408552911,1773887443972,-482.59231839,0.00013537,2]
[408552912,1773887443982,-151.0,0.00013559,2]
[408552913,1773887443992,-343.0,0.00013562,2]
[408552914,1773887444001,-803.09530237,0.00013562,2]
[408552915,1773887444011,-782.0,0.00013573,2]
[408552916,1773887444020,-7012.46374542,0.00013592,2]
[408552917,1773887444030,-10000.0,0.00013595,2]
[408552918,1773887444041,-7400.59810628,0.00013599,2]
[408552919,1773887444051,-782.0,0.00013614,2]
[408552920,1773887444061,-803.09530237,0.00013616,2]
[408552921,1773887444071,-2000.0,0.00013616,2]
[408552922,1773887444090,-782.0,0.00013621,2]
[408552923,1773887444100,-4408.4856178,0.00013635,2]
[408552924,1773887444111,-3609.92329877,0.00013649,2]
[408552925,1773887444124,-1347.8219094,0.00013649,2]
[408552926,1773887444135,-946.660142,0.00013664,2]
[408552927,1773887444146,-946.660142,0.00013664,2]
[408552928,1773887444157,-946.660142,0.00013664,2]
[408552929,1773887444168,-946.660142,0.00013664,2]
[408552930,1773887444179,-803.09530237,0.00013671,2]
[408552931,1773887444190,-211.53723896,0.00013689,2]
[408552932,1773887444200,-151.0,0.00013692,2]
[408552933,1773887444211,-500.0,0.00013692,2]
[408552934,1773887444221,-500.0,0.00013692,2]
[408552935,1773887444231,-500.0,0.00013692,2]
[408552936,1773887444241,-596.68097798,0.00013692,2]
[408552937,1773887444252,-500.0,0.00013692,2]
[408552938,1773887444262,-500.0,0.00013692,2]
[408552939,1773887444272,-500.0,0.00013692,2]
[408552940,1773887444282,-500.0,0.00013692,2]
[408552941,1773887444294,-555.13507274,0.00013692,2]
[408552942,1773887444306,-150.0,0.00013692,2]
[408552943,1773887444316,-150.0,0.00013692,2]
[408552944,1773887444325,-150.0,0.00013692,2]
[408552945,1773887444334,-280.14759695,0.00013692,2]
[408552946,1773887444343,-500.0,0.00013692,2]
[408552947,1773887444353,-500.0,0.00013692,2]
[408552948,1773887444362,-500.0,0.00013692,2]
[408552949,1773887444371,-500.0,0.00013692,2]
[408552950,1773887444380,-500.0,0.00013692,2]
[408552951,1773887444390,-500.0,0.00013692,2]
[408552952,1773887444399,-386.48877466,0.00013692,2]
[408552953,1773887444409,-500.0,0.00013692,2]
[408552954,1773887444418,-500.0,0.00013692,2]
[408552955,1773887444427,-500.0,0.00013692,2]
[408552956,1773887444437,-500.0,0.00013692,2]
[408552957,1773887444446,-500.0,0.00013692,2]
[408552958,1773887444455,-500.0,0.00013692,2]
[408552959,1773887444464,-165.93576534,0.00013692,2]
[408552960,1773887444473,-156.12652739,0.00013692,2]
[408552961,1773887444482,-150.0,0.00013692,2]
[408552962,1773887444492,-150.0,0.00013692,2]
[408552963,1773887444501,-150.0,0.00013692,2]
[408552964,1773887444522,-202.13850988,0.00013692,2]
[408552965,1773887444531,-154.75024109,0.00013692,2]
[408552966,1773887444540,-500.0,0.00013692,2]
[408552967,1773887444550,-500.0,0.00013692,2]
[408552968,1773887444560,-500.0,0.00013692,2]
[408552969,1773887444569,-500.0,0.00013692,2]
[408552970,1773887444579,-500.0,0.00013692,2]
[408552971,1773887444588,-500.0,0.00013692,2]
[408552972,1773887444598,-500.0,0.00013692,2]
[408552973,1773887444607,-500.0,0.00013692,2]
[408552974,1773887444617,-500.0,0.00013692,2]
[408552975,1773887444627,-556.13980161,0.00013692,2]
[408552976,1773887444636,-500.0,0.00013692,2]
[408552977,1773887444646,-542.50378378,0.00013692,2]
[408552978,1773887444656,-500.0,0.00013692,2]
[408552979,1773887444666,-500.0,0.00013692,2]
[408552980,1773887444675,-150.0,0.00013692,2]
[408552981,1773887444685,-500.0,0.00013692,2]
[408552982,1773887444695,-150.0,0.00013692,2]
[408552983,1773887444705,-500.0,0.00013692,2]
[408552984,1773887444714,-150.0,0.00013692,2]
[408552985,1773887444724,-608.69659724,0.00013692,2]
[408552986,1773887444734,-150.0,0.00013692,2]
[408552987,1773887444744,-207.51068709,0.00013692,2]
[408552988,1773887444755,-150.0,0.00013692,2]
[408552989,1773887444766,-207.36459101,0.00013692,2]
[408552990,1773887444775,-500.0,0.00013692,2]
[408552991,1773887444785,-500.0,0.00013692,2]
[408552992,1773887444794,-500.0,0.00013692,2]
[408552993,1773887444803,-500.0,0.00013692,2]
[408552994,1773887444813,-500.0,0.00013692,2]
[408552995,1773887444822,-191.52421155,0.00013692,2]
[408552996,1773887444832,-150.0,0.00013692,2]
[408552997,1773887444841,-500.0,0.00013692,2]
[408552998,1773887444850,-500.0,0.00013692,2]
[408552999,1773887444860,-500.0,0.00013692,2]
[408553000,1773887444869,-500.0,0.00013692,2]
[408553001,1773887444878,-500.0,0.00013692,2]
[408553002,1773887444888,-150.0,0.00013692,2]
[408553003,1773887444897,-500.0,0.00013692,2]
[408553004,1773887444907,-150.37263222,0.00013692,2]
[408553005,1773887444916,-500.0,0.00013692,2]
[408553006,1773887444925,-500.0,0.00013692,2]
[408553007,1773887444935,-500.0,0.00013692,2]
[408553008,1773887444943,-500.0,0.00013692,2]
[408553009,1773887444953,-500.0,0.00013692,2]
[408553010,1773887444964,-500.0,0.00013692,2]
[408553011,1773887444975,-500.0,0.00013692,2]
[408553012,1773887444985,-206.79155437,0.00013692,2]
[408553013,1773887444994,-500.0,0.00013692,2]
[408553014,1773887445004,-500.0,0.00013692,2]
[408553015,1773887445014,-500.0,0.00013692,2]
[408553016,1773887445024,-500.0,0.00013692,2]
[408553017,1773887445035,-500.0,0.00013692,2]
[408553018,1773887445047,-500.0,0.00013692,2]